Workbook

Sheet Input
B2: Metro-Access Network Dimensioning
B4: Zone name | C4: Simulateur v1.0
C6: Data | K6: Metro | L6: POP | M6: Feeder | N6: "Manhole" | O6: Drop | P6: BEP | Q6: In-house | R6: Home
B7: Surface | C7: 25.02 | J7: Actual | K7: 1 | L7: 23 | M7: 13 | N7: 3 | O7: 3 | P7: 5 | Q7: 6 | R7: 8
B8: Nb. Central Offices | C8: 10 | J8: Compatibility | K8: =IF(ISNA(MATCH(act_metro&";"&act_pop,TableCompatibility[Lookup],0)),"NOK","OK") -> OK | L8: =IF(ISNA(MATCH(act_feeder&";"&act_pop,TableCompatibility[Lookup],0)),"NOK","OK") -> OK | M8: =IF(ISNA(MATCH(act_feeder&";"&act_manhole,TableCompatibility[Lookup],0)),"NOK","OK") -> OK | N8: =IF(ISNA(MATCH(act_drop&";"&act_manhole,TableCompatibility[Lookup],0)),"NOK","OK") -> OK | O8: =IF(ISNA(MATCH(act_drop&";"&act_bep,TableCompatibility[Lookup],0)),"NOK","OK") -> OK | P8: =IF(ISNA(MATCH(act_inhouse&";"&act_bep,TableCompatibility[Lookup],0)),"NOK","OK") -> OK | Q8: =IF(ISNA(MATCH(act_inhouse&";"&act_home,TableCompatibility[Lookup],0)),"NOK","OK") -> OK
B9: Linear factor feeder | C9: 1.5 | J9: Future | K9: 1 | L9: 24 | M9: 13 | N9: 9 | O9: 3 | P9: 5 | Q9: 6 | R9: 10
B10: Linear factor drop | C10: 2 | J10: Compatibility | K10: =IF(ISNA(MATCH(fut_metro&";"&fut_pop,TableCompatibility[Lookup],0)),"NOK","OK") -> OK | L10: =IF(ISNA(MATCH(fut_feeder&";"&fut_pop,TableCompatibility[Lookup],0)),"NOK","OK") -> OK | M10: =IF(ISNA(MATCH(fut_feeder&";"&fut_manhole,TableCompatibility[Lookup],0)),"NOK","OK") -> OK | N10: =IF(ISNA(MATCH(fut_drop&";"&fut_manhole,TableCompatibility[Lookup],0)),"NOK","OK") -> OK | O10: =IF(ISNA(MATCH(fut_drop&";"&fut_bep,TableCompatibility[Lookup],0)),"NOK","OK") -> OK | P10: =IF(ISNA(MATCH(fut_inhouse&";"&fut_bep,TableCompatibility[Lookup],0)),"NOK","OK") -> OK | Q10: =IF(ISNA(MATCH(fut_inhouse&";"&fut_home,TableCompatibility[Lookup],0)),"NOK","OK") -> OK
B11: In-house average | C11: 0.03
C13: Actual | D13: Future
B14: Year | C14: 2013 | D14: 2025
B15: Lodgment | C15: 95725 | D15: 97500
B16: Building | C16: 18672 | D16: 19000
B17: Distance metro | C17: 10 | D17: 10
B18: Distance drop max | C18: 0.35 | D18: 0.1

Sheet Output
B2: Metro-Access Network Dimensioning
B4: Simulation result page
B6: Zone | C6: =ZoneName -> Simulateur v1.0
B7: Base year | C7: =act_year -> 2013
B8: Projected year | C8: =fut_year -> 2025
B9: Simulation date | C9: =TODAY() -> 2015-01-25
B11: Detailed results | G11: Detailled costs | J11: Final costs
B13: Nb. CO (Central Offices) | C13: =nb_pops -> 10 | G13: Cost metro | H13: =IF(act_metro=fut_metro,(dst_metro_fut-dst_metro_act)*LOOKUP(fut_metro, TableTransmission[ID], TableTransmission[Total km cost]),dst_metro_fut*LOOKUP(fut_metro, TableTransmission[ID], TableTransmission[Total km cost])) -> 0 | J13: Total per building | K13: =(cost_metro+cost_pop+cost_feeder+cost_manhole+cost_drop+cost_bep)/fut_building -> 1427.047872
B14: Surface per CO | C14: =Surface/nb_pops -> 2.502 | G14: Cost POP | H14: =IF(act_pop=fut_pop,(nb_pop_fut-nb_pop_act)*LOOKUP(fut_pop,TableInterconnection[ID],TableInterconnection[Total initial cost]),nb_pop_fut*LOOKUP(fut_pop,TableInterconnection[ID],TableInterconnection[Total initial cost])) -> 1998000 | J14: Total per lodgment | K14: =final_cost_metroaccess/fut_lodgment -> 428.0913802
B15: Distance CO to manhole | C15: =SQRT(sur_per_centr/PI())*linear_factor_feeder -> 1.338628217 | G15: Cost feeder | H15: =IF(act_feeder=fut_feeder,IF((dst_feeder_fut-dst_feeder_act)<0,0,(dst_feeder_fut-dst_feeder_act))*LOOKUP(fut_feeder, TableTransmission[ID], TableTransmission[Total km cost]),dst_feeder_fut*LOOKUP(fut_feeder, TableTransmission[ID], TableTransmission[Total km cost])) -> 7900709.57 | J15: Total metro | K15: =cost_metro -> 0
G16: Cost "Manhole" | H16: =IF(act_manhole=fut_manhole,IF((nb_manhole_elt_fut-nb_manhole_elt_act)<0,0,(nb_manhole_elt_fut-nb_manhole_elt_act))*(LOOKUP(fut_manhole,TableInterconnection[ID],TableInterconnection[Initial cost per port]))*LOOKUP(fut_manhole,TableInterconnection[ID],TableInterconnection[Ports per unit])+IF((nb_manhole_fut-nb_manhole_act)<0,0,(nb_manhole_fut-nb_manhole_act))*LOOKUP(fut_manhole,TableInterconnection[ID],TableInterconnection[Installation cost]),nb_manhole_elt_fut*((LOOKUP(fut_manhole,TableInterconnection[ID],TableInterconnection[Initial cost per port]))*LOOKUP(fut_manhole,TableInterconnection[ID],TableInterconnection[Ports per unit]))+nb_manhole_fut*LOOKUP(fut_manhole,TableInterconnection[ID],TableInterconnection[Installation cost])) -> 17215200 | J16: Total access | K16: =final_cost_drop+final_cost_feeder -> 27113909.57
C17: Actual | D17: Future | E17: Delta | G17: Cost drop | H17: =IF(act_drop=fut_drop,IF((dst_drop_fut-dst_drop_act)<0,0,(dst_drop_fut-dst_drop_act))*LOOKUP(fut_drop,TableTransmission[ID],TableTransmission[Total km cost]),dst_drop_fut*LOOKUP(fut_drop,TableTransmission[ID],TableTransmission[Total km cost])) -> 0 | J17: Total drop | K17: =cost_bep+cost_drop+cost_manhole -> 17215200
B18: Nb. brick POP | C18: =ROUNDUP(nb_manhole_elt_act/LOOKUP(act_pop, TableInterconnection[ID],TableInterconnection[Ports per unit])/nb_co,0)*nb_co -> 10 | D18: =ROUNDUP(nb_manhole_elt_fut/LOOKUP(fut_pop, TableInterconnection[ID],TableInterconnection[Ports per unit])/nb_co,0)*nb_co -> 30 | E18: =(100-(100/nb_pop_fut*nb_pop_act))/100 -> 0.6666666667 | G18: Cost BEP | H18: =IF(act_bep=fut_bep,(fut_building-act_building)*LOOKUP(fut_bep,TableInterconnection[ID],TableInterconnection[Total initial cost]),fut_building*LOOKUP(fut_bep,TableInterconnection[ID],TableInterconnection[Total initial cost])) -> 0 | J18: Total feeder | K18: =cost_feeder+cost_pop -> 9898709.57
B19: Distance total metro | C19: =in_dst_metro_act -> 10 | D19: =in_dst_metro_fut -> 10 | E19: =(100-(100/dst_metro_fut*dst_metro_act))/100 -> 0 | G19: Cost In-House | H19: =IF(act_inhouse=fut_inhouse,(dst_inhouse_fut-dst_inhouse_act)*LOOKUP(fut_inhouse, TableTransmission[ID],TableTransmission[Total km cost]),dst_inhouse_fut*LOOKUP(fut_inhouse, TableTransmission[ID],TableTransmission[Total km cost])) -> 0 | J19: Total In-House | K19: =cost_inhouse -> 0
B20: Distance total feeder | C20: =dst_centr_lodg*nb_manhole_act -> 88.34946234 | D20: =dst_centr_lodg*nb_manhole_fut -> 1066.886689 | E20: =(100-(100/dst_feeder_fut*dst_feeder_act))/100 -> 0.9171894605 | G20: Cost Home | H20: =IF(act_home=fut_home,(fut_lodgment-act_lodgment)*LOOKUP(fut_home,TableInterconnection[ID],TableInterconnection[Total initial cost]),fut_lodgment*LOOKUP(fut_home,TableInterconnection[ID],TableInterconnection[Total initial cost])) -> 14625000 | J20: In-House per lodgment | K20: =final_cost_inhouse/fut_lodgment -> 0
B21: Distance total drop | C21: =drop_dst_act*act_building -> 6535.2 | D21: =drop_dst_fut*fut_building -> 1900 | E21: =(100-(100/dst_drop_fut*dst_drop_act))/100 -> -2.439578947 | J21: Total House | K21: =cost_home -> 14625000
B22: Distance mean drop | C22: =dist_drop_max_act*linear_factor_drop/2 -> 0.35 | D22: =dist_drop_max_fut*linear_factor_drop/2 -> 0.1 | E22: =(100-(100/drop_dst_fut*drop_dst_act))/100 -> -2.5 | J22: House per lodgment | K22: =final_cost_home/fut_lodgment -> 150
B23: Distance in-house | C23: =inhouse_average*act_lodgment -> 2871.75 | D23: =inhouse_average*fut_lodgment -> 2925 | E23: =(100-(100/dst_inhouse_fut*dst_inhouse_act))/100 -> 0.01820512821 | J23: Total | K23: =cost_metro+cost_pop+cost_feeder+cost_manhole+cost_drop+cost_bep+cost_inhouse+cost_home -> 41738909.57
B24: Surface per manhole | C24: =PI()*POWER(dist_drop_max_act,2) -> 0.3848451001 | D24: =PI()*POWER(dist_drop_max_fut,2) -> 0.03141592654 | E24: =(100-(100/surface_manh_fut*surface_manh_act))/100 -> -11.25
B25: Nb. "Manhole" location | C25: =ROUNDUP(Surface/surface_manh_act,0) -> 66 | D25: =ROUNDUP(Surface/surface_manh_fut,0) -> 797 | E25: =(100-(100/nb_manhole_fut*nb_manhole_act))/100 -> 0.9171894605
B26: Nb. "Manhole" bricks | C26: =(ROUNDUP(((act_lodgment/nb_manhole_act)/LOOKUP(act_manhole,TableInterconnection[ID],TableInterconnection[Ports per unit])),0)*nb_manhole_act) -> 66 | D26: =(ROUNDUP(((fut_lodgment/nb_manhole_fut)/LOOKUP(fut_manhole,TableInterconnection[ID],TableInterconnection[Ports per unit])),0)*nb_manhole_fut) -> 2391 | E26: =(100-(100/nb_manhole_elt_fut*nb_manhole_elt_act))/100 -> 0.9723964868
B27: Nb. BEP bricks | C27: =act_building -> 18672 | D27: =fut_building -> 19000 | E27: =(100-(100/nb_bep_fut*nb_bep_act))/100 -> 0.01726315789
B28: Nb. Home bricks | C28: =act_lodgment -> 95725 | D28: =fut_lodgment -> 97500 | E28: =(100-(100/nb_home_fut*nb_home_act))/100 -> 0.01820512821
B29: Lodgements per building | C29: =act_lodgment/act_building -> 5.12666024 | D29: =fut_lodgment/fut_building -> 5.131578947 | E29: =(100-(100/D29*C29))/100 -> 0.0009585173467
B30: Manhole location per CO | C30: =nb_manhole_act/nb_co -> 6.6 | D30: =nb_manhole_fut/nb_co -> 79.7 | E30: =(100-(100/D30*C30))/100 -> 0.9171894605
B31: Lodgements per CO | C31: =act_lodgment/nb_pops -> 9572.5 | D31: =fut_lodgment/nb_pops -> 9750 | E31: =(100-(100/nb_lodg_pop_fut*nb_lodg_pop_act))/100 -> 0.01820512821
B32: Lodgements per manhole location | C32: =act_lodgment/nb_manhole_act -> 1450.378788 | D32: =fut_lodgment/nb_manhole_fut -> 122.3337516 | E32: =(100-(100/D32*C32))/100 -> -10.85591686
B33: Buildings per manhole location | C33: =act_building/nb_manhole_act -> 282.9090909 | D33: =fut_building/nb_manhole_fut -> 23.83939774 | E33: =(100-(100/D33*C33))/100 -> -10.86729187

Sheet Transmission
A1: ID | B1: Type | C1: Name | D1: Description | E1: Km cost | F1: Km installation cost | G1: Total km cost
A2: 1 | B2: Metro | C2: Fiber Optic (4 FO) | D2: 1 fibers in 4 FO cable + 1 installation for 1 cable in same tube | E2: =820*0.7 -> 574 | F2: 7500 | G2: =TableTransmission[[#This Row],[Km cost]]+TableTransmission[[#This Row],[Km installation cost]] -> 8074
A3: 2 | B3: Feeder | C3: Fiber Optic (432 FO / tube) | D3: 432 FO cable + installation for 1 cable in same tube | E3: =21490*0.7 -> 15043 | F3: 7500 | G3: =TableTransmission[[#This Row],[Km cost]]+TableTransmission[[#This Row],[Km installation cost]] -> 22543
A4: 3 | B4: Drop | C4: Copper pair | D4: already exists | E4: 0 | F4: 0 | G4: =TableTransmission[[#This Row],[Km cost]]+TableTransmission[[#This Row],[Km installation cost]] -> 0
A5: 4 | B5: Drop | C5: Fiber Optic FTTH (48 FO / tube) | D5: 48 FO cable + installation for 1 cable in same tube | E5: =3720*0.7 -> 2604 | F5: =5000+1500/dst_drop_fut -> 5000.789474 | G5: =TableTransmission[[#This Row],[Km cost]]+TableTransmission[[#This Row],[Km installation cost]] -> 7604.789474
A6: 5 | B6: InHouse | C6: Optical fiber | D6: 4 fibers in 4 FO cable + BEP to CPE work | E6: =1210*0.7 -> 847 | F6: 5000 | G6: =TableTransmission[[#This Row],[Km cost]]+TableTransmission[[#This Row],[Km installation cost]] -> 5847
A7: 6 | B7: InHouse | C7: Copper pair | D7: already exists | E7: 0 | F7: 0 | G7: =TableTransmission[[#This Row],[Km cost]]+TableTransmission[[#This Row],[Km installation cost]] -> 0
A8: 7 | B8: Feeder | C8: Fiber Optic (4 FO / tube) | D8: 2 fiber in 4 FO cable + installation for 1 cable in same tube | E8: =820*0.7 -> 574 | F8: 7500 | G8: =TableTransmission[[#This Row],[Km cost]]+TableTransmission[[#This Row],[Km installation cost]] -> 8074
A9: 8 | B9: Drop | C9: Coax distribution | D9: already exists | E9: 2000 | F9: 5000 | G9: =TableTransmission[[#This Row],[Km cost]]+TableTransmission[[#This Row],[Km installation cost]] -> 7000
A10: 9 | B10: InHouse | C10: Coax indoor | D10: already exists | E10: 1000 | F10: 5000 | G10: =TableTransmission[[#This Row],[Km cost]]+TableTransmission[[#This Row],[Km installation cost]] -> 6000
A11: 10 | B11: Feeder | C11: Fiber Optic (288 FO / tube) | D11: 288 FO cable + installation for 1 cable in same tube | E11: =17000*0.7 -> 11900 | F11: 7500 | G11: =TableTransmission[[#This Row],[Km cost]]+TableTransmission[[#This Row],[Km installation cost]] -> 19400
A12: 11 | B12: Feeder | C12: Fiber Optic (576 FO / tube) | D12: 576 FO cable + installation for 1 cable in same tube | E12: =31870*0.7 -> 22309 | F12: 7500 | G12: =TableTransmission[[#This Row],[Km cost]]+TableTransmission[[#This Row],[Km installation cost]] -> 29809
A13: 12 | B13: Drop | C13: Fiber Optic (4 FO / tube) | D13: 2 FO cable + installation for 1 cable in same tube | E13: =4560*0.7 -> 3192 | F13: =5000+1500/drop_dst_fut -> 20000 | G13: =TableTransmission[[#This Row],[Km cost]]+TableTransmission[[#This Row],[Km installation cost]] -> 23192
A14: 13 | B14: Feeder | C14: Fiber Optic (4 FO / tube) | D14: 2 FO cable + installation for 1 cable in same tube | E14: =820*0.7 -> 574 | F14: 7500 | G14: =TableTransmission[[#This Row],[Km cost]]+TableTransmission[[#This Row],[Km installation cost]] -> 8074

Sheet Compatibility
A2: Transmission ID | B2: Transmission Type | C2: Transmission Name | D2: Interconnection ID | E2: Interconnection Type | F2: Interconnection Name | G2: Lookup
A3: 1 | B3: =LOOKUP(TableCompatibility[[#This Row],[Transmission ID]],TableTransmission[ID],TableTransmission[Type]) -> Metro | C3: =LOOKUP(TableCompatibility[[#This Row],[Transmission ID]],TableTransmission[ID],TableTransmission[Name]) -> Fiber Optic (4 FO) | D3: 11 | E3: =LOOKUP(TableCompatibility[[#This Row],[Interconnection ID]], TableInterconnection[ID], TableInterconnection[Type]) -> POP | F3: =LOOKUP(TableCompatibility[[#This Row],[Interconnection ID]], TableInterconnection[ID], TableInterconnection[Name]) -> Optical Switch (1500 x 1G + 2 x 40G) | G3: =TableCompatibility[[#This Row],[Transmission ID]]&";"&TableCompatibility[[#This Row],[Interconnection ID]] -> 1;11
A4: 1 | B4: =LOOKUP(TableCompatibility[[#This Row],[Transmission ID]],TableTransmission[ID],TableTransmission[Type]) -> Metro | C4: =LOOKUP(TableCompatibility[[#This Row],[Transmission ID]],TableTransmission[ID],TableTransmission[Name]) -> Fiber Optic (4 FO) | D4: 1 | E4: =LOOKUP(TableCompatibility[[#This Row],[Interconnection ID]], TableInterconnection[ID], TableInterconnection[Type]) -> POP | F4: =LOOKUP(TableCompatibility[[#This Row],[Interconnection ID]], TableInterconnection[ID], TableInterconnection[Name]) -> Optical Switch (500 x 1G + 2 x 10G) | G4: =TableCompatibility[[#This Row],[Transmission ID]]&";"&TableCompatibility[[#This Row],[Interconnection ID]] -> 1;1
A5: 1 | B5: =LOOKUP(TableCompatibility[[#This Row],[Transmission ID]],TableTransmission[ID],TableTransmission[Type]) -> Metro | C5: =LOOKUP(TableCompatibility[[#This Row],[Transmission ID]],TableTransmission[ID],TableTransmission[Name]) -> Fiber Optic (4 FO) | D5: 2 | E5: =LOOKUP(TableCompatibility[[#This Row],[Interconnection ID]], TableInterconnection[ID], TableInterconnection[Type]) -> POP | F5: =LOOKUP(TableCompatibility[[#This Row],[Interconnection ID]], TableInterconnection[ID], TableInterconnection[Name]) -> Optical Switch (48 x 1G + 1 x 1G) | G5: =TableCompatibility[[#This Row],[Transmission ID]]&";"&TableCompatibility[[#This Row],[Interconnection ID]] -> 1;2
A6: 1 | B6: =LOOKUP(TableCompatibility[[#This Row],[Transmission ID]],TableTransmission[ID],TableTransmission[Type]) -> Metro | C6: =LOOKUP(TableCompatibility[[#This Row],[Transmission ID]],TableTransmission[ID],TableTransmission[Name]) -> Fiber Optic (4 FO) | D6: 16 | E6: =LOOKUP(TableCompatibility[[#This Row],[Interconnection ID]], TableInterconnection[ID], TableInterconnection[Type]) -> POP | F6: =LOOKUP(TableCompatibility[[#This Row],[Interconnection ID]], TableInterconnection[ID], TableInterconnection[Name]) -> Optical Switch (250 x 1G + 2 x 10G) | G6: =TableCompatibility[[#This Row],[Transmission ID]]&";"&TableCompatibility[[#This Row],[Interconnection ID]] -> 1;16
A7: 1 | B7: =LOOKUP(TableCompatibility[[#This Row],[Transmission ID]],TableTransmission[ID],TableTransmission[Type]) -> Metro | C7: =LOOKUP(TableCompatibility[[#This Row],[Transmission ID]],TableTransmission[ID],TableTransmission[Name]) -> Fiber Optic (4 FO) | D7: 22 | E7: =LOOKUP(TableCompatibility[[#This Row],[Interconnection ID]], TableInterconnection[ID], TableInterconnection[Type]) -> POP | F7: =LOOKUP(TableCompatibility[[#This Row],[Interconnection ID]], TableInterconnection[ID], TableInterconnection[Name]) -> Optical Switch PON (150 ports with 64 clients + 2 x 40G) | G7: =TableCompatibility[[#This Row],[Transmission ID]]&";"&TableCompatibility[[#This Row],[Interconnection ID]] -> 1;22
A8: 11 | B8: =LOOKUP(TableCompatibility[[#This Row],[Transmission ID]],TableTransmission[ID],TableTransmission[Type]) -> Feeder | C8: =LOOKUP(TableCompatibility[[#This Row],[Transmission ID]],TableTransmission[ID],TableTransmission[Name]) -> Fiber Optic (576 FO / tube) | D8: 11 | E8: =LOOKUP(TableCompatibility[[#This Row],[Interconnection ID]], TableInterconnection[ID], TableInterconnection[Type]) -> POP | F8: =LOOKUP(TableCompatibility[[#This Row],[Interconnection ID]], TableInterconnection[ID], TableInterconnection[Name]) -> Optical Switch (1500 x 1G + 2 x 40G) | G8: =TableCompatibility[[#This Row],[Transmission ID]]&";"&TableCompatibility[[#This Row],[Interconnection ID]] -> 11;11
A9: 2 | B9: =LOOKUP(TableCompatibility[[#This Row],[Transmission ID]],TableTransmission[ID],TableTransmission[Type]) -> Feeder | C9: =LOOKUP(TableCompatibility[[#This Row],[Transmission ID]],TableTransmission[ID],TableTransmission[Name]) -> Fiber Optic (432 FO / tube) | D9: 11 | E9: =LOOKUP(TableCompatibility[[#This Row],[Interconnection ID]], TableInterconnection[ID], TableInterconnection[Type]) -> POP | F9: =LOOKUP(TableCompatibility[[#This Row],[Interconnection ID]], TableInterconnection[ID], TableInterconnection[Name]) -> Optical Switch (1500 x 1G + 2 x 40G) | G9: =TableCompatibility[[#This Row],[Transmission ID]]&";"&TableCompatibility[[#This Row],[Interconnection ID]] -> 2;11
A10: 11 | B10: =LOOKUP(TableCompatibility[[#This Row],[Transmission ID]],TableTransmission[ID],TableTransmission[Type]) -> Feeder | C10: =LOOKUP(TableCompatibility[[#This Row],[Transmission ID]],TableTransmission[ID],TableTransmission[Name]) -> Fiber Optic (576 FO / tube) | D10: 3 | E10: =LOOKUP(TableCompatibility[[#This Row],[Interconnection ID]], TableInterconnection[ID], TableInterconnection[Type]) -> Manhole | F10: =LOOKUP(TableCompatibility[[#This Row],[Interconnection ID]], TableInterconnection[ID], TableInterconnection[Name]) -> DSLAM VDSL (1500 clients + 2 x 1G) | G10: =TableCompatibility[[#This Row],[Transmission ID]]&";"&TableCompatibility[[#This Row],[Interconnection ID]] -> 11;3
A11: 3 | B11: =LOOKUP(TableCompatibility[[#This Row],[Transmission ID]],TableTransmission[ID],TableTransmission[Type]) -> Drop | C11: =LOOKUP(TableCompatibility[[#This Row],[Transmission ID]],TableTransmission[ID],TableTransmission[Name]) -> Copper pair | D11: 3 | E11: =LOOKUP(TableCompatibility[[#This Row],[Interconnection ID]], TableInterconnection[ID], TableInterconnection[Type]) -> Manhole | F11: =LOOKUP(TableCompatibility[[#This Row],[Interconnection ID]], TableInterconnection[ID], TableInterconnection[Name]) -> DSLAM VDSL (1500 clients + 2 x 1G) | G11: =TableCompatibility[[#This Row],[Transmission ID]]&";"&TableCompatibility[[#This Row],[Interconnection ID]] -> 3;3
A12: 4 | B12: =LOOKUP(TableCompatibility[[#This Row],[Transmission ID]],TableTransmission[ID],TableTransmission[Type]) -> Drop | C12: =LOOKUP(TableCompatibility[[#This Row],[Transmission ID]],TableTransmission[ID],TableTransmission[Name]) -> Fiber Optic FTTH (48 FO / tube) | D12: 4 | E12: =LOOKUP(TableCompatibility[[#This Row],[Interconnection ID]], TableInterconnection[ID], TableInterconnection[Type]) -> Manhole | F12: =LOOKUP(TableCompatibility[[#This Row],[Interconnection ID]], TableInterconnection[ID], TableInterconnection[Name]) -> Optical splice | G12: =TableCompatibility[[#This Row],[Transmission ID]]&";"&TableCompatibility[[#This Row],[Interconnection ID]] -> 4;4
A13: 13 | B13: =LOOKUP(TableCompatibility[[#This Row],[Transmission ID]],TableTransmission[ID],TableTransmission[Type]) -> Feeder | C13: =LOOKUP(TableCompatibility[[#This Row],[Transmission ID]],TableTransmission[ID],TableTransmission[Name]) -> Fiber Optic (4 FO / tube) | D13: 23 | E13: =LOOKUP(TableCompatibility[[#This Row],[Interconnection ID]], TableInterconnection[ID], TableInterconnection[Type]) -> POP | F13: =LOOKUP(TableCompatibility[[#This Row],[Interconnection ID]], TableInterconnection[ID], TableInterconnection[Name]) -> Optical Switch (24 x 1G + 1x 1G) | G13: =TableCompatibility[[#This Row],[Transmission ID]]&";"&TableCompatibility[[#This Row],[Interconnection ID]] -> 13;23
A14: 1 | B14: =LOOKUP(TableCompatibility[[#This Row],[Transmission ID]],TableTransmission[ID],TableTransmission[Type]) -> Metro | C14: =LOOKUP(TableCompatibility[[#This Row],[Transmission ID]],TableTransmission[ID],TableTransmission[Name]) -> Fiber Optic (4 FO) | D14: 23 | E14: =LOOKUP(TableCompatibility[[#This Row],[Interconnection ID]], TableInterconnection[ID], TableInterconnection[Type]) -> POP | F14: =LOOKUP(TableCompatibility[[#This Row],[Interconnection ID]], TableInterconnection[ID], TableInterconnection[Name]) -> Optical Switch (24 x 1G + 1x 1G) | G14: =TableCompatibility[[#This Row],[Transmission ID]]&";"&TableCompatibility[[#This Row],[Interconnection ID]] -> 1;23
A15: 3 | B15: =LOOKUP(TableCompatibility[[#This Row],[Transmission ID]],TableTransmission[ID],TableTransmission[Type]) -> Drop | C15: =LOOKUP(TableCompatibility[[#This Row],[Transmission ID]],TableTransmission[ID],TableTransmission[Name]) -> Copper pair | D15: 5 | E15: =LOOKUP(TableCompatibility[[#This Row],[Interconnection ID]], TableInterconnection[ID], TableInterconnection[Type]) -> BEP | F15: =LOOKUP(TableCompatibility[[#This Row],[Interconnection ID]], TableInterconnection[ID], TableInterconnection[Name]) -> BEP copper pair | G15: =TableCompatibility[[#This Row],[Transmission ID]]&";"&TableCompatibility[[#This Row],[Interconnection ID]] -> 3;5
A16: 3 | B16: =LOOKUP(TableCompatibility[[#This Row],[Transmission ID]],TableTransmission[ID],TableTransmission[Type]) -> Drop | C16: =LOOKUP(TableCompatibility[[#This Row],[Transmission ID]],TableTransmission[ID],TableTransmission[Name]) -> Copper pair | D16: 3 | E16: =LOOKUP(TableCompatibility[[#This Row],[Interconnection ID]], TableInterconnection[ID], TableInterconnection[Type]) -> Manhole | F16: =LOOKUP(TableCompatibility[[#This Row],[Interconnection ID]], TableInterconnection[ID], TableInterconnection[Name]) -> DSLAM VDSL (1500 clients + 2 x 1G) | G16: =TableCompatibility[[#This Row],[Transmission ID]]&";"&TableCompatibility[[#This Row],[Interconnection ID]] -> 3;3
A17: 13 | B17: =LOOKUP(TableCompatibility[[#This Row],[Transmission ID]],TableTransmission[ID],TableTransmission[Type]) -> Feeder | C17: =LOOKUP(TableCompatibility[[#This Row],[Transmission ID]],TableTransmission[ID],TableTransmission[Name]) -> Fiber Optic (4 FO / tube) | D17: 3 | E17: =LOOKUP(TableCompatibility[[#This Row],[Interconnection ID]], TableInterconnection[ID], TableInterconnection[Type]) -> Manhole | F17: =LOOKUP(TableCompatibility[[#This Row],[Interconnection ID]], TableInterconnection[ID], TableInterconnection[Name]) -> DSLAM VDSL (1500 clients + 2 x 1G) | G17: =TableCompatibility[[#This Row],[Transmission ID]]&";"&TableCompatibility[[#This Row],[Interconnection ID]] -> 13;3
A18: 6 | B18: =LOOKUP(TableCompatibility[[#This Row],[Transmission ID]],TableTransmission[ID],TableTransmission[Type]) -> InHouse | C18: =LOOKUP(TableCompatibility[[#This Row],[Transmission ID]],TableTransmission[ID],TableTransmission[Name]) -> Copper pair | D18: 5 | E18: =LOOKUP(TableCompatibility[[#This Row],[Interconnection ID]], TableInterconnection[ID], TableInterconnection[Type]) -> BEP | F18: =LOOKUP(TableCompatibility[[#This Row],[Interconnection ID]], TableInterconnection[ID], TableInterconnection[Name]) -> BEP copper pair | G18: =TableCompatibility[[#This Row],[Transmission ID]]&";"&TableCompatibility[[#This Row],[Interconnection ID]] -> 6;5
A19: 6 | B19: =LOOKUP(TableCompatibility[[#This Row],[Transmission ID]],TableTransmission[ID],TableTransmission[Type]) -> InHouse | C19: =LOOKUP(TableCompatibility[[#This Row],[Transmission ID]],TableTransmission[ID],TableTransmission[Name]) -> Copper pair | D19: 8 | E19: =LOOKUP(TableCompatibility[[#This Row],[Interconnection ID]], TableInterconnection[ID], TableInterconnection[Type]) -> Home | F19: =LOOKUP(TableCompatibility[[#This Row],[Interconnection ID]], TableInterconnection[ID], TableInterconnection[Name]) -> VDSL modem | G19: =TableCompatibility[[#This Row],[Transmission ID]]&";"&TableCompatibility[[#This Row],[Interconnection ID]] -> 6;8
A20: 5 | B20: =LOOKUP(TableCompatibility[[#This Row],[Transmission ID]],TableTransmission[ID],TableTransmission[Type]) -> InHouse | C20: =LOOKUP(TableCompatibility[[#This Row],[Transmission ID]],TableTransmission[ID],TableTransmission[Name]) -> Optical fiber | D20: 6 | E20: =LOOKUP(TableCompatibility[[#This Row],[Interconnection ID]], TableInterconnection[ID], TableInterconnection[Type]) -> Home | F20: =LOOKUP(TableCompatibility[[#This Row],[Interconnection ID]], TableInterconnection[ID], TableInterconnection[Name]) -> FTTH modem | G20: =TableCompatibility[[#This Row],[Transmission ID]]&";"&TableCompatibility[[#This Row],[Interconnection ID]] -> 5;6
A21: 5 | B21: =LOOKUP(TableCompatibility[[#This Row],[Transmission ID]],TableTransmission[ID],TableTransmission[Type]) -> InHouse | C21: =LOOKUP(TableCompatibility[[#This Row],[Transmission ID]],TableTransmission[ID],TableTransmission[Name]) -> Optical fiber | D21: 7 | E21: =LOOKUP(TableCompatibility[[#This Row],[Interconnection ID]], TableInterconnection[ID], TableInterconnection[Type]) -> BEP | F21: =LOOKUP(TableCompatibility[[#This Row],[Interconnection ID]], TableInterconnection[ID], TableInterconnection[Name]) -> BEP optical fiber | G21: =TableCompatibility[[#This Row],[Transmission ID]]&";"&TableCompatibility[[#This Row],[Interconnection ID]] -> 5;7
A22: 4 | B22: =LOOKUP(TableCompatibility[[#This Row],[Transmission ID]],TableTransmission[ID],TableTransmission[Type]) -> Drop | C22: =LOOKUP(TableCompatibility[[#This Row],[Transmission ID]],TableTransmission[ID],TableTransmission[Name]) -> Fiber Optic FTTH (48 FO / tube) | D22: 7 | E22: =LOOKUP(TableCompatibility[[#This Row],[Interconnection ID]], TableInterconnection[ID], TableInterconnection[Type]) -> BEP | F22: =LOOKUP(TableCompatibility[[#This Row],[Interconnection ID]], TableInterconnection[ID], TableInterconnection[Name]) -> BEP optical fiber | G22: =TableCompatibility[[#This Row],[Transmission ID]]&";"&TableCompatibility[[#This Row],[Interconnection ID]] -> 4;7
A23: 11 | B23: =LOOKUP(TableCompatibility[[#This Row],[Transmission ID]],TableTransmission[ID],TableTransmission[Type]) -> Feeder | C23: =LOOKUP(TableCompatibility[[#This Row],[Transmission ID]],TableTransmission[ID],TableTransmission[Name]) -> Fiber Optic (576 FO / tube) | D23: 4 | E23: =LOOKUP(TableCompatibility[[#This Row],[Interconnection ID]], TableInterconnection[ID], TableInterconnection[Type]) -> Manhole | F23: =LOOKUP(TableCompatibility[[#This Row],[Interconnection ID]], TableInterconnection[ID], TableInterconnection[Name]) -> Optical splice | G23: =TableCompatibility[[#This Row],[Transmission ID]]&";"&TableCompatibility[[#This Row],[Interconnection ID]] -> 11;4
A24: 6 | B24: =LOOKUP(TableCompatibility[[#This Row],[Transmission ID]],TableTransmission[ID],TableTransmission[Type]) -> InHouse | C24: =LOOKUP(TableCompatibility[[#This Row],[Transmission ID]],TableTransmission[ID],TableTransmission[Name]) -> Copper pair | D24: 10 | E24: =LOOKUP(TableCompatibility[[#This Row],[Interconnection ID]], TableInterconnection[ID], TableInterconnection[Type]) -> Home | F24: =LOOKUP(TableCompatibility[[#This Row],[Interconnection ID]], TableInterconnection[ID], TableInterconnection[Name]) -> G.fast modem | G24: =TableCompatibility[[#This Row],[Transmission ID]]&";"&TableCompatibility[[#This Row],[Interconnection ID]] -> 6;10
A25: 3 | B25: =LOOKUP(TableCompatibility[[#This Row],[Transmission ID]],TableTransmission[ID],TableTransmission[Type]) -> Drop | C25: =LOOKUP(TableCompatibility[[#This Row],[Transmission ID]],TableTransmission[ID],TableTransmission[Name]) -> Copper pair | D25: 9 | E25: =LOOKUP(TableCompatibility[[#This Row],[Interconnection ID]], TableInterconnection[ID], TableInterconnection[Type]) -> Manhole | F25: =LOOKUP(TableCompatibility[[#This Row],[Interconnection ID]], TableInterconnection[ID], TableInterconnection[Name]) -> DSLAM G.fast (48 clients + 1 x 10G) | G25: =TableCompatibility[[#This Row],[Transmission ID]]&";"&TableCompatibility[[#This Row],[Interconnection ID]] -> 3;9
A26: 13 | B26: =LOOKUP(TableCompatibility[[#This Row],[Transmission ID]],TableTransmission[ID],TableTransmission[Type]) -> Feeder | C26: =LOOKUP(TableCompatibility[[#This Row],[Transmission ID]],TableTransmission[ID],TableTransmission[Name]) -> Fiber Optic (4 FO / tube) | D26: 9 | E26: =LOOKUP(TableCompatibility[[#This Row],[Interconnection ID]], TableInterconnection[ID], TableInterconnection[Type]) -> Manhole | F26: =LOOKUP(TableCompatibility[[#This Row],[Interconnection ID]], TableInterconnection[ID], TableInterconnection[Name]) -> DSLAM G.fast (48 clients + 1 x 10G) | G26: =TableCompatibility[[#This Row],[Transmission ID]]&";"&TableCompatibility[[#This Row],[Interconnection ID]] -> 13;9
A27: 13 | B27: =LOOKUP(TableCompatibility[[#This Row],[Transmission ID]],TableTransmission[ID],TableTransmission[Type]) -> Feeder | C27: =LOOKUP(TableCompatibility[[#This Row],[Transmission ID]],TableTransmission[ID],TableTransmission[Name]) -> Fiber Optic (4 FO / tube) | D27: 24 | E27: =LOOKUP(TableCompatibility[[#This Row],[Interconnection ID]], TableInterconnection[ID], TableInterconnection[Type]) -> POP | F27: =LOOKUP(TableCompatibility[[#This Row],[Interconnection ID]], TableInterconnection[ID], TableInterconnection[Name]) -> Optical Switch (96 x 10G + 2 x 40 G) | G27: =TableCompatibility[[#This Row],[Transmission ID]]&";"&TableCompatibility[[#This Row],[Interconnection ID]] -> 13;24
A28: 1 | B28: =LOOKUP(TableCompatibility[[#This Row],[Transmission ID]],TableTransmission[ID],TableTransmission[Type]) -> Metro | C28: =LOOKUP(TableCompatibility[[#This Row],[Transmission ID]],TableTransmission[ID],TableTransmission[Name]) -> Fiber Optic (4 FO) | D28: 24 | E28: =LOOKUP(TableCompatibility[[#This Row],[Interconnection ID]], TableInterconnection[ID], TableInterconnection[Type]) -> POP | F28: =LOOKUP(TableCompatibility[[#This Row],[Interconnection ID]], TableInterconnection[ID], TableInterconnection[Name]) -> Optical Switch (96 x 10G + 2 x 40 G) | G28: =TableCompatibility[[#This Row],[Transmission ID]]&";"&TableCompatibility[[#This Row],[Interconnection ID]] -> 1;24

Sheet Interconnection
A1: ID | B1: Type | C1: Name | D1: Description | E1: Initial cost per port | F1: Installation cost | G1: Ports per unit | H1: Total initial cost | I1: Downstream [Mb/s]
A2: 1 | B2: POP | C2: Optical Switch (500 x 1G + 2 x 10G) | E2: =((5000+2*600)/TableInterconnection[[#This Row],[Ports per unit]]+100) -> 112.4 | F2: 0 | G2: 500 | H2: =TableInterconnection[[#This Row],[Initial cost per port]]*TableInterconnection[[#This Row],[Ports per unit]]+TableInterconnection[[#This Row],[Installation cost]] -> 56200 | I2: 20000
A3: 2 | B3: POP | C3: Optical Switch (48 x 1G + 1 x 1G) | E3: =((8500+100)/TableInterconnection[[#This Row],[Ports per unit]]) -> 179.1666667 | F3: 0 | G3: 48 | H3: =TableInterconnection[[#This Row],[Initial cost per port]]*TableInterconnection[[#This Row],[Ports per unit]]+TableInterconnection[[#This Row],[Installation cost]] -> 8600 | I3: 2000
A4: 3 | B4: Manhole | C4: DSLAM VDSL (1500 clients + 2 x 1G) | D4: already exists | E4: 0 | F4: 0 | G4: 1500 | H4: =TableInterconnection[[#This Row],[Initial cost per port]]*TableInterconnection[[#This Row],[Ports per unit]]+TableInterconnection[[#This Row],[Installation cost]] -> 0 | I4: 2000
A5: 4 | B5: Manhole | C5: Optical splice | D5: optical splice + manhole installation | E5: 20 | F5: 0 | G5: 1 | H5: =TableInterconnection[[#This Row],[Initial cost per port]]*TableInterconnection[[#This Row],[Ports per unit]]+TableInterconnection[[#This Row],[Installation cost]] -> 20
A6: 5 | B6: BEP | C6: BEP copper pair | E6: 0 | F6: 0 | G6: 1 | H6: =TableInterconnection[[#This Row],[Initial cost per port]]*TableInterconnection[[#This Row],[Ports per unit]]+TableInterconnection[[#This Row],[Installation cost]] -> 0
A7: 6 | B7: Home | C7: FTTH modem | E7: 150 | G7: 1 | H7: =TableInterconnection[[#This Row],[Initial cost per port]]*TableInterconnection[[#This Row],[Ports per unit]]+TableInterconnection[[#This Row],[Installation cost]] -> 150
A8: 7 | B8: BEP | C8: BEP optical fiber | E8: 150 | F8: 0 | G8: 1 | H8: =TableInterconnection[[#This Row],[Initial cost per port]]*TableInterconnection[[#This Row],[Ports per unit]]+TableInterconnection[[#This Row],[Installation cost]] -> 150
A9: 8 | B9: Home | C9: VDSL modem | D9: already exists | E9: 0 | F9: 0 | G9: 1 | H9: =TableInterconnection[[#This Row],[Initial cost per port]]*TableInterconnection[[#This Row],[Ports per unit]]+TableInterconnection[[#This Row],[Installation cost]] -> 0 | I9: 200
A10: 9 | B10: Manhole | C10: DSLAM G.fast (48 clients + 1 x 10G) | E10: 150 | F10: 0 | G10: 48 | H10: =TableInterconnection[[#This Row],[Initial cost per port]]*TableInterconnection[[#This Row],[Ports per unit]]+TableInterconnection[[#This Row],[Installation cost]] -> 7200 | I10: 10000
A11: 10 | B11: Home | C11: G.fast modem | E11: 150 | F11: 0 | G11: 1 | H11: =TableInterconnection[[#This Row],[Initial cost per port]]*TableInterconnection[[#This Row],[Ports per unit]]+TableInterconnection[[#This Row],[Installation cost]] -> 150
A12: 11 | B12: POP | C12: Optical Switch (1500 x 1G + 2 x 40G) | E12: =((5000+2*2000)/TableInterconnection[[#This Row],[Ports per unit]]+100) -> 106 | F12: 0 | G12: 1500 | H12: =TableInterconnection[[#This Row],[Initial cost per port]]*TableInterconnection[[#This Row],[Ports per unit]]+TableInterconnection[[#This Row],[Installation cost]] -> 159000 | I12: 80000
A13: 12 | B13: Manhole | C13: CMTS DOCSIS 3.1 (24 islet of 50 clients + 1 x 10G FO) | E13: =150*24 -> 3600 | F13: 0 | G13: 24 | H13: =TableInterconnection[[#This Row],[Initial cost per port]]*TableInterconnection[[#This Row],[Ports per unit]]+TableInterconnection[[#This Row],[Installation cost]] -> 86400 | I13: 10000
A14: 13 | B14: Manhole | C14: CMTS DOCSIS 3.1 (48 islet of 50 clients + 2 x 10G FO) | E14: =150*48 -> 7200 | F14: 0 | G14: 48 | H14: =TableInterconnection[[#This Row],[Initial cost per port]]*TableInterconnection[[#This Row],[Ports per unit]]+TableInterconnection[[#This Row],[Installation cost]] -> 345600 | I14: 20000
A15: 14 | B15: Manhole | C15: CMTS DOCSIS 3.0 (24 islet of 100 clients + 1 x 1G FO) | D15: already exists | E15: 0 | F15: 0 | G15: 24 | H15: =TableInterconnection[[#This Row],[Initial cost per port]]*TableInterconnection[[#This Row],[Ports per unit]]+TableInterconnection[[#This Row],[Installation cost]] -> 0 | I15: 0
A16: 15 | B16: Manhole | C16: CMTS DOCSIS 3.0 (48 islet of 100 clients + 1 x 1G FO) | D16: already exists | F16: 0 | G16: 48 | H16: =TableInterconnection[[#This Row],[Initial cost per port]]*TableInterconnection[[#This Row],[Ports per unit]]+TableInterconnection[[#This Row],[Installation cost]] -> 0 | I16: 0
A17: 16 | B17: POP | C17: Optical Switch (250 x 1G + 2 x 10G) | D17: optical switch chassis + 1G port + 10G ports | E17: =(5000+2*600)/TableInterconnection[[#This Row],[Ports per unit]]+100 -> 124.8 | F17: 0 | G17: 250 | H17: =TableInterconnection[[#This Row],[Initial cost per port]]*TableInterconnection[[#This Row],[Ports per unit]]+TableInterconnection[[#This Row],[Installation cost]] -> 31200 | I17: 20000
A18: 17 | B18: BEP | C18: Coaxial | D18: already exists | E18: 0 | F18: 0 | G18: 1 | H18: =TableInterconnection[[#This Row],[Initial cost per port]]*TableInterconnection[[#This Row],[Ports per unit]]+TableInterconnection[[#This Row],[Installation cost]] -> 0
A19: 18 | B19: BEP | C19: PON splitter 1:8 | E19: =20 -> 20 | F19: 0 | G19: 8 | H19: =TableInterconnection[[#This Row],[Initial cost per port]]*TableInterconnection[[#This Row],[Ports per unit]]+TableInterconnection[[#This Row],[Installation cost]] -> 160 | I19: 10000
A20: 19 | B20: BEP | C20: PON splitter 1:4 | E20: 20 | F20: 0 | G20: 4 | H20: =TableInterconnection[[#This Row],[Initial cost per port]]*TableInterconnection[[#This Row],[Ports per unit]]+TableInterconnection[[#This Row],[Installation cost]] -> 80 | I20: 10000
A21: 20 | B21: Manhole | C21: PON splitter 1:16 | E21: 20 | F21: 0 | G21: 16 | H21: =TableInterconnection[[#This Row],[Initial cost per port]]*TableInterconnection[[#This Row],[Ports per unit]]+TableInterconnection[[#This Row],[Installation cost]] -> 320 | I21: 10000
A22: 21 | B22: Manhole | C22: PON splitter 1:8 | E22: 20 | F22: 0 | G22: 8 | H22: =TableInterconnection[[#This Row],[Initial cost per port]]*TableInterconnection[[#This Row],[Ports per unit]]+TableInterconnection[[#This Row],[Installation cost]] -> 160 | I22: 10000
A23: 22 | B23: POP | C23: Optical Switch PON (150 ports with 64 clients + 2 x 40G) | E23: =(5000+2*2000)/TableInterconnection[[#This Row],[Ports per unit]]+400 -> 460 | F23: 0 | G23: 150 | H23: =TableInterconnection[[#This Row],[Initial cost per port]]*TableInterconnection[[#This Row],[Ports per unit]]+TableInterconnection[[#This Row],[Installation cost]] -> 69000
A24: 23 | B24: POP | C24: Optical Switch (24 x 1G + 1x 1G) | E24: =(4500+100)/TableInterconnection[[#This Row],[Ports per unit]] -> 191.6666667 | G24: 24 | H24: =TableInterconnection[[#This Row],[Initial cost per port]]*TableInterconnection[[#This Row],[Ports per unit]]+TableInterconnection[[#This Row],[Installation cost]] -> 4600
A25: 24 | B25: POP | C25: Optical Switch (96 x 10G + 2 x 40 G) | D25: optical switch chassis + 10G port + 40G ports | E25: =(5000+2*2000)/TableInterconnection[[#This Row],[Ports per unit]]+600 -> 693.75 | F25: 0 | G25: 96 | H25: =TableInterconnection[[#This Row],[Initial cost per port]]*TableInterconnection[[#This Row],[Ports per unit]]+TableInterconnection[[#This Row],[Installation cost]] -> 66600 | I25: 80000

Sheet Cost per Section
B1: Metro | C1: Feeder | D1: Drop | E1: InHouse | F1: Home
A2: Interconnection | B2: 0 | C2: =cost_pop/1000 -> 1998 | D2: =(cost_manhole)/1000 -> 17215.2 | E2: =cost_bep/1000 -> 0 | F2: =cost_home/1000 -> 14625
A3: Transmission | B3: =cost_metro/1000 -> 0 | C3: =cost_feeder/1000 -> 7900.70957 | D3: =cost_drop/1000 -> 0 | E3: =cost_inhouse/1000 -> 0 | F3: 0

Sheet Cost Distance drop
A1: Distance drop max | B1: Nb lodgments per manhole | C1: Nb buildings per manhole | D1: Cost feeder | E1: Cost drop | F1: Total Cost | G1: Min
A2: 1 | B2: 12187.5 | C2: 2375 | D2: 1998000 | E2: 14630400 | F2: =TableCostRatio[[#This Row],[Cost feeder]]+TableCostRatio[[#This Row],[Cost drop]] -> 16628400 | G2: =IF(TableCostRatio[[#This Row],[Total Cost]]=MIN(TableCostRatio[Total Cost]),IF(SUM(G3:$G$99)=0,1,""),"") -> 
A3: 0.99 | B3: 10833.33333 | C3: 2111.111111 | D3: 1998000 | E3: 14644800 | F3: =TableCostRatio[[#This Row],[Cost feeder]]+TableCostRatio[[#This Row],[Cost drop]] -> 16642800 | G3: =IF(TableCostRatio[[#This Row],[Total Cost]]=MIN(TableCostRatio[Total Cost]),IF(SUM(G4:$G$99)=0,1,""),"") -> 
A4: 0.98 | B4: 10833.33333 | C4: 2111.111111 | D4: 1998000 | E4: 14644800 | F4: =TableCostRatio[[#This Row],[Cost feeder]]+TableCostRatio[[#This Row],[Cost drop]] -> 16642800 | G4: =IF(TableCostRatio[[#This Row],[Total Cost]]=MIN(TableCostRatio[Total Cost]),IF(SUM(G5:$G$99)=0,1,""),"") -> 
A5: 0.97 | B5: 10833.33333 | C5: 2111.111111 | D5: 1998000 | E5: 14644800 | F5: =TableCostRatio[[#This Row],[Cost feeder]]+TableCostRatio[[#This Row],[Cost drop]] -> 16642800 | G5: =IF(TableCostRatio[[#This Row],[Total Cost]]=MIN(TableCostRatio[Total Cost]),IF(SUM(G6:$G$99)=0,1,""),"") -> 
A6: 0.96 | B6: 10833.33333 | C6: 2111.111111 | D6: 1998000 | E6: 14644800 | F6: =TableCostRatio[[#This Row],[Cost feeder]]+TableCostRatio[[#This Row],[Cost drop]] -> 16642800 | G6: =IF(TableCostRatio[[#This Row],[Total Cost]]=MIN(TableCostRatio[Total Cost]),IF(SUM(G7:$G$99)=0,1,""),"") -> 
A7: 0.95 | B7: 10833.33333 | C7: 2111.111111 | D7: 1998000 | E7: 14644800 | F7: =TableCostRatio[[#This Row],[Cost feeder]]+TableCostRatio[[#This Row],[Cost drop]] -> 16642800 | G7: =IF(TableCostRatio[[#This Row],[Total Cost]]=MIN(TableCostRatio[Total Cost]),IF(SUM(G8:$G$99)=0,1,""),"") -> 
A8: 0.94 | B8: 9750 | C8: 1900 | D8: 1998000 | E8: 14688000 | F8: =TableCostRatio[[#This Row],[Cost feeder]]+TableCostRatio[[#This Row],[Cost drop]] -> 16686000 | G8: =IF(TableCostRatio[[#This Row],[Total Cost]]=MIN(TableCostRatio[Total Cost]),IF(SUM(G9:$G$99)=0,1,""),"") -> 
A9: 0.93 | B9: 9750 | C9: 1900 | D9: 1998000 | E9: 14688000 | F9: =TableCostRatio[[#This Row],[Cost feeder]]+TableCostRatio[[#This Row],[Cost drop]] -> 16686000 | G9: =IF(TableCostRatio[[#This Row],[Total Cost]]=MIN(TableCostRatio[Total Cost]),IF(SUM(G10:$G$99)=0,1,""),"") -> 
A10: 0.92 | B10: 9750 | C10: 1900 | D10: 1998000 | E10: 14688000 | F10: =TableCostRatio[[#This Row],[Cost feeder]]+TableCostRatio[[#This Row],[Cost drop]] -> 16686000 | G10: =IF(TableCostRatio[[#This Row],[Total Cost]]=MIN(TableCostRatio[Total Cost]),IF(SUM(G11:$G$99)=0,1,""),"") -> 
A11: 0.91 | B11: 9750 | C11: 1900 | D11: 1998000 | E11: 14688000 | F11: =TableCostRatio[[#This Row],[Cost feeder]]+TableCostRatio[[#This Row],[Cost drop]] -> 16686000 | G11: =IF(TableCostRatio[[#This Row],[Total Cost]]=MIN(TableCostRatio[Total Cost]),IF(SUM(G12:$G$99)=0,1,""),"") -> 
A12: 0.9 | B12: 9750 | C12: 1900 | D12: 1998000 | E12: 14688000 | F12: =TableCostRatio[[#This Row],[Cost feeder]]+TableCostRatio[[#This Row],[Cost drop]] -> 16686000 | G12: =IF(TableCostRatio[[#This Row],[Total Cost]]=MIN(TableCostRatio[Total Cost]),IF(SUM(G13:$G$99)=0,1,""),"") -> 
A13: 0.89 | B13: 8863.636364 | C13: 1727.272727 | D13: 1998000 | E13: 14652000 | F13: =TableCostRatio[[#This Row],[Cost feeder]]+TableCostRatio[[#This Row],[Cost drop]] -> 16650000 | G13: =IF(TableCostRatio[[#This Row],[Total Cost]]=MIN(TableCostRatio[Total Cost]),IF(SUM(G14:$G$99)=0,1,""),"") -> 
A14: 0.88 | B14: 8863.636364 | C14: 1727.272727 | D14: 1998000 | E14: 14652000 | F14: =TableCostRatio[[#This Row],[Cost feeder]]+TableCostRatio[[#This Row],[Cost drop]] -> 16650000 | G14: =IF(TableCostRatio[[#This Row],[Total Cost]]=MIN(TableCostRatio[Total Cost]),IF(SUM(G15:$G$99)=0,1,""),"") -> 
A15: 0.87 | B15: 8863.636364 | C15: 1727.272727 | D15: 1998000 | E15: 14652000 | F15: =TableCostRatio[[#This Row],[Cost feeder]]+TableCostRatio[[#This Row],[Cost drop]] -> 16650000 | G15: =IF(TableCostRatio[[#This Row],[Total Cost]]=MIN(TableCostRatio[Total Cost]),IF(SUM(G16:$G$99)=0,1,""),"") -> 
A16: 0.86 | B16: 8863.636364 | C16: 1727.272727 | D16: 1998000 | E16: 14652000 | F16: =TableCostRatio[[#This Row],[Cost feeder]]+TableCostRatio[[#This Row],[Cost drop]] -> 16650000 | G16: =IF(TableCostRatio[[#This Row],[Total Cost]]=MIN(TableCostRatio[Total Cost]),IF(SUM(G17:$G$99)=0,1,""),"") -> 
A17: 0.85 | B17: 8125 | C17: 1583.333333 | D17: 1998000 | E17: 14688000 | F17: =TableCostRatio[[#This Row],[Cost feeder]]+TableCostRatio[[#This Row],[Cost drop]] -> 16686000 | G17: =IF(TableCostRatio[[#This Row],[Total Cost]]=MIN(TableCostRatio[Total Cost]),IF(SUM(G18:$G$99)=0,1,""),"") -> 
A18: 0.84 | B18: 8125 | C18: 1583.333333 | D18: 1998000 | E18: 14688000 | F18: =TableCostRatio[[#This Row],[Cost feeder]]+TableCostRatio[[#This Row],[Cost drop]] -> 16686000 | G18: =IF(TableCostRatio[[#This Row],[Total Cost]]=MIN(TableCostRatio[Total Cost]),IF(SUM(G19:$G$99)=0,1,""),"") -> 
A19: 0.83 | B19: 8125 | C19: 1583.333333 | D19: 1998000 | E19: 14688000 | F19: =TableCostRatio[[#This Row],[Cost feeder]]+TableCostRatio[[#This Row],[Cost drop]] -> 16686000 | G19: =IF(TableCostRatio[[#This Row],[Total Cost]]=MIN(TableCostRatio[Total Cost]),IF(SUM(G20:$G$99)=0,1,""),"") -> 
A20: 0.82 | B20: 8125 | C20: 1583.333333 | D20: 1998000 | E20: 14688000 | F20: =TableCostRatio[[#This Row],[Cost feeder]]+TableCostRatio[[#This Row],[Cost drop]] -> 16686000 | G20: =IF(TableCostRatio[[#This Row],[Total Cost]]=MIN(TableCostRatio[Total Cost]),IF(SUM(G21:$G$99)=0,1,""),"") -> 
A21: 0.81 | B21: 7500 | C21: 1461.538462 | D21: 1998000 | E21: 14695200 | F21: =TableCostRatio[[#This Row],[Cost feeder]]+TableCostRatio[[#This Row],[Cost drop]] -> 16693200 | G21: =IF(TableCostRatio[[#This Row],[Total Cost]]=MIN(TableCostRatio[Total Cost]),IF(SUM(G22:$G$99)=0,1,""),"") -> 
A22: 0.8 | B22: 7500 | C22: 1461.538462 | D22: 1998000 | E22: 14695200 | F22: =TableCostRatio[[#This Row],[Cost feeder]]+TableCostRatio[[#This Row],[Cost drop]] -> 16693200 | G22: =IF(TableCostRatio[[#This Row],[Total Cost]]=MIN(TableCostRatio[Total Cost]),IF(SUM(G23:$G$99)=0,1,""),"") -> 
A23: 0.79 | B23: 7500 | C23: 1461.538462 | D23: 1998000 | E23: 14695200 | F23: =TableCostRatio[[#This Row],[Cost feeder]]+TableCostRatio[[#This Row],[Cost drop]] -> 16693200 | G23: =IF(TableCostRatio[[#This Row],[Total Cost]]=MIN(TableCostRatio[Total Cost]),IF(SUM(G24:$G$99)=0,1,""),"") -> 
A24: 0.78 | B24: 6964.285714 | C24: 1357.142857 | D24: 1998000 | E24: 14716800 | F24: =TableCostRatio[[#This Row],[Cost feeder]]+TableCostRatio[[#This Row],[Cost drop]] -> 16714800 | G24: =IF(TableCostRatio[[#This Row],[Total Cost]]=MIN(TableCostRatio[Total Cost]),IF(SUM(G25:$G$99)=0,1,""),"") -> 
A25: 0.77 | B25: 6964.285714 | C25: 1357.142857 | D25: 1998000 | E25: 14716800 | F25: =TableCostRatio[[#This Row],[Cost feeder]]+TableCostRatio[[#This Row],[Cost drop]] -> 16714800 | G25: =IF(TableCostRatio[[#This Row],[Total Cost]]=MIN(TableCostRatio[Total Cost]),IF(SUM(G26:$G$99)=0,1,""),"") -> 
A26: 0.76 | B26: 6964.285714 | C26: 1357.142857 | D26: 1998000 | E26: 14716800 | F26: =TableCostRatio[[#This Row],[Cost feeder]]+TableCostRatio[[#This Row],[Cost drop]] -> 16714800 | G26: =IF(TableCostRatio[[#This Row],[Total Cost]]=MIN(TableCostRatio[Total Cost]),IF(SUM(G27:$G$99)=0,1,""),"") -> 
A27: 0.75 | B27: 6500 | C27: 1266.666667 | D27: 1998000 | E27: 14688000 | F27: =TableCostRatio[[#This Row],[Cost feeder]]+TableCostRatio[[#This Row],[Cost drop]] -> 16686000 | G27: =IF(TableCostRatio[[#This Row],[Total Cost]]=MIN(TableCostRatio[Total Cost]),IF(SUM(G28:$G$99)=0,1,""),"") -> 
A28: 0.74 | B28: 6500 | C28: 1266.666667 | D28: 1998000 | E28: 14688000 | F28: =TableCostRatio[[#This Row],[Cost feeder]]+TableCostRatio[[#This Row],[Cost drop]] -> 16686000 | G28: =IF(TableCostRatio[[#This Row],[Total Cost]]=MIN(TableCostRatio[Total Cost]),IF(SUM(G29:$G$99)=0,1,""),"") -> 
A29: 0.73 | B29: 6500 | C29: 1266.666667 | D29: 1998000 | E29: 14688000 | F29: =TableCostRatio[[#This Row],[Cost feeder]]+TableCostRatio[[#This Row],[Cost drop]] -> 16686000 | G29: =IF(TableCostRatio[[#This Row],[Total Cost]]=MIN(TableCostRatio[Total Cost]),IF(SUM(G30:$G$99)=0,1,""),"") -> 
A30: 0.72 | B30: 6093.75 | C30: 1187.5 | D30: 1998000 | E30: 14630400 | F30: =TableCostRatio[[#This Row],[Cost feeder]]+TableCostRatio[[#This Row],[Cost drop]] -> 16628400 | G30: =IF(TableCostRatio[[#This Row],[Total Cost]]=MIN(TableCostRatio[Total Cost]),IF(SUM(G31:$G$99)=0,1,""),"") -> 
A31: 0.71 | B31: 6093.75 | C31: 1187.5 | D31: 1998000 | E31: 14630400 | F31: =TableCostRatio[[#This Row],[Cost feeder]]+TableCostRatio[[#This Row],[Cost drop]] -> 16628400 | G31: =IF(TableCostRatio[[#This Row],[Total Cost]]=MIN(TableCostRatio[Total Cost]),IF(SUM(G32:$G$99)=0,1,""),"") -> 1
A32: 0.7 | B32: 5735.294118 | C32: 1117.647059 | D32: 1998000 | E32: 14688000 | F32: =TableCostRatio[[#This Row],[Cost feeder]]+TableCostRatio[[#This Row],[Cost drop]] -> 16686000 | G32: =IF(TableCostRatio[[#This Row],[Total Cost]]=MIN(TableCostRatio[Total Cost]),IF(SUM(G33:$G$99)=0,1,""),"") -> 
A33: 0.69 | B33: 5735.294118 | C33: 1117.647059 | D33: 1998000 | E33: 14688000 | F33: =TableCostRatio[[#This Row],[Cost feeder]]+TableCostRatio[[#This Row],[Cost drop]] -> 16686000 | G33: =IF(TableCostRatio[[#This Row],[Total Cost]]=MIN(TableCostRatio[Total Cost]),IF(SUM(G34:$G$99)=0,1,""),"") -> 
A34: 0.68 | B34: 5416.666667 | C34: 1055.555556 | D34: 1998000 | E34: 14644800 | F34: =TableCostRatio[[#This Row],[Cost feeder]]+TableCostRatio[[#This Row],[Cost drop]] -> 16642800 | G34: =IF(TableCostRatio[[#This Row],[Total Cost]]=MIN(TableCostRatio[Total Cost]),IF(SUM(G35:$G$99)=0,1,""),"") -> 
A35: 0.67 | B35: 5416.666667 | C35: 1055.555556 | D35: 1998000 | E35: 14644800 | F35: =TableCostRatio[[#This Row],[Cost feeder]]+TableCostRatio[[#This Row],[Cost drop]] -> 16642800 | G35: =IF(TableCostRatio[[#This Row],[Total Cost]]=MIN(TableCostRatio[Total Cost]),IF(SUM(G36:$G$99)=0,1,""),"") -> 
A36: 0.66 | B36: 5131.578947 | C36: 1000 | D36: 1998000 | E36: 14637600 | F36: =TableCostRatio[[#This Row],[Cost feeder]]+TableCostRatio[[#This Row],[Cost drop]] -> 16635600 | G36: =IF(TableCostRatio[[#This Row],[Total Cost]]=MIN(TableCostRatio[Total Cost]),IF(SUM(G37:$G$99)=0,1,""),"") -> 
A37: 0.65 | B37: 5131.578947 | C37: 1000 | D37: 1998000 | E37: 14637600 | F37: =TableCostRatio[[#This Row],[Cost feeder]]+TableCostRatio[[#This Row],[Cost drop]] -> 16635600 | G37: =IF(TableCostRatio[[#This Row],[Total Cost]]=MIN(TableCostRatio[Total Cost]),IF(SUM(G38:$G$99)=0,1,""),"") -> 
A38: 0.64 | B38: 4875 | C38: 950 | D38: 1998000 | E38: 14688000 | F38: =TableCostRatio[[#This Row],[Cost feeder]]+TableCostRatio[[#This Row],[Cost drop]] -> 16686000 | G38: =IF(TableCostRatio[[#This Row],[Total Cost]]=MIN(TableCostRatio[Total Cost]),IF(SUM(G39:$G$99)=0,1,""),"") -> 
A39: 0.63 | B39: 4642.857143 | C39: 904.7619048 | D39: 1998000 | E39: 14666400 | F39: =TableCostRatio[[#This Row],[Cost feeder]]+TableCostRatio[[#This Row],[Cost drop]] -> 16664400 | G39: =IF(TableCostRatio[[#This Row],[Total Cost]]=MIN(TableCostRatio[Total Cost]),IF(SUM(G40:$G$99)=0,1,""),"") -> 
A40: 0.62 | B40: 4642.857143 | C40: 904.7619048 | D40: 1998000 | E40: 14666400 | F40: =TableCostRatio[[#This Row],[Cost feeder]]+TableCostRatio[[#This Row],[Cost drop]] -> 16664400 | G40: =IF(TableCostRatio[[#This Row],[Total Cost]]=MIN(TableCostRatio[Total Cost]),IF(SUM(G41:$G$99)=0,1,""),"") -> 
A41: 0.61 | B41: 4431.818182 | C41: 863.6363636 | D41: 1998000 | E41: 14731200 | F41: =TableCostRatio[[#This Row],[Cost feeder]]+TableCostRatio[[#This Row],[Cost drop]] -> 16729200 | G41: =IF(TableCostRatio[[#This Row],[Total Cost]]=MIN(TableCostRatio[Total Cost]),IF(SUM(G42:$G$99)=0,1,""),"") -> 
A42: 0.6 | B42: 4239.130435 | C42: 826.0869565 | D42: 1998000 | E42: 14738400 | F42: =TableCostRatio[[#This Row],[Cost feeder]]+TableCostRatio[[#This Row],[Cost drop]] -> 16736400 | G42: =IF(TableCostRatio[[#This Row],[Total Cost]]=MIN(TableCostRatio[Total Cost]),IF(SUM(G43:$G$99)=0,1,""),"") -> 
A43: 0.59 | B43: 4239.130435 | C43: 826.0869565 | D43: 1998000 | E43: 14738400 | F43: =TableCostRatio[[#This Row],[Cost feeder]]+TableCostRatio[[#This Row],[Cost drop]] -> 16736400 | G43: =IF(TableCostRatio[[#This Row],[Total Cost]]=MIN(TableCostRatio[Total Cost]),IF(SUM(G44:$G$99)=0,1,""),"") -> 
A44: 0.58 | B44: 4062.5 | C44: 791.6666667 | D44: 1998000 | E44: 14688000 | F44: =TableCostRatio[[#This Row],[Cost feeder]]+TableCostRatio[[#This Row],[Cost drop]] -> 16686000 | G44: =IF(TableCostRatio[[#This Row],[Total Cost]]=MIN(TableCostRatio[Total Cost]),IF(SUM(G45:$G$99)=0,1,""),"") -> 
A45: 0.57 | B45: 3900 | C45: 760 | D45: 1998000 | E45: 14760000 | F45: =TableCostRatio[[#This Row],[Cost feeder]]+TableCostRatio[[#This Row],[Cost drop]] -> 16758000 | G45: =IF(TableCostRatio[[#This Row],[Total Cost]]=MIN(TableCostRatio[Total Cost]),IF(SUM(G46:$G$99)=0,1,""),"") -> 
A46: 0.56 | B46: 3750 | C46: 730.7692308 | D46: 1998000 | E46: 14788800 | F46: =TableCostRatio[[#This Row],[Cost feeder]]+TableCostRatio[[#This Row],[Cost drop]] -> 16786800 | G46: =IF(TableCostRatio[[#This Row],[Total Cost]]=MIN(TableCostRatio[Total Cost]),IF(SUM(G47:$G$99)=0,1,""),"") -> 
A47: 0.55 | B47: 3611.111111 | C47: 703.7037037 | D47: 1998000 | E47: 14774400 | F47: =TableCostRatio[[#This Row],[Cost feeder]]+TableCostRatio[[#This Row],[Cost drop]] -> 16772400 | G47: =IF(TableCostRatio[[#This Row],[Total Cost]]=MIN(TableCostRatio[Total Cost]),IF(SUM(G48:$G$99)=0,1,""),"") -> 
A48: 0.54 | B48: 3482.142857 | C48: 678.5714286 | D48: 1998000 | E48: 14716800 | F48: =TableCostRatio[[#This Row],[Cost feeder]]+TableCostRatio[[#This Row],[Cost drop]] -> 16714800 | G48: =IF(TableCostRatio[[#This Row],[Total Cost]]=MIN(TableCostRatio[Total Cost]),IF(SUM(G49:$G$99)=0,1,""),"") -> 
A49: 0.53 | B49: 3362.068966 | C49: 655.1724138 | D49: 1998000 | E49: 14824800 | F49: =TableCostRatio[[#This Row],[Cost feeder]]+TableCostRatio[[#This Row],[Cost drop]] -> 16822800 | G49: =IF(TableCostRatio[[#This Row],[Total Cost]]=MIN(TableCostRatio[Total Cost]),IF(SUM(G50:$G$99)=0,1,""),"") -> 
A50: 0.52 | B50: 3250 | C50: 633.3333333 | D50: 1998000 | E50: 14688000 | F50: =TableCostRatio[[#This Row],[Cost feeder]]+TableCostRatio[[#This Row],[Cost drop]] -> 16686000 | G50: =IF(TableCostRatio[[#This Row],[Total Cost]]=MIN(TableCostRatio[Total Cost]),IF(SUM(G51:$G$99)=0,1,""),"") -> 
A51: 0.51 | B51: 3145.16129 | C51: 612.9032258 | D51: 1998000 | E51: 14731200 | F51: =TableCostRatio[[#This Row],[Cost feeder]]+TableCostRatio[[#This Row],[Cost drop]] -> 16729200 | G51: =IF(TableCostRatio[[#This Row],[Total Cost]]=MIN(TableCostRatio[Total Cost]),IF(SUM(G52:$G$99)=0,1,""),"") -> 
A52: 0.5 | B52: 3046.875 | C52: 593.75 | D52: 1998000 | E52: 14745600 | F52: =TableCostRatio[[#This Row],[Cost feeder]]+TableCostRatio[[#This Row],[Cost drop]] -> 16743600 | G52: =IF(TableCostRatio[[#This Row],[Total Cost]]=MIN(TableCostRatio[Total Cost]),IF(SUM(G53:$G$99)=0,1,""),"") -> 
A53: 0.49 | B53: 2867.647059 | C53: 558.8235294 | D53: 1998000 | E53: 14688000 | F53: =TableCostRatio[[#This Row],[Cost feeder]]+TableCostRatio[[#This Row],[Cost drop]] -> 16686000 | G53: =IF(TableCostRatio[[#This Row],[Total Cost]]=MIN(TableCostRatio[Total Cost]),IF(SUM(G54:$G$99)=0,1,""),"") -> 
A54: 0.48 | B54: 2785.714286 | C54: 542.8571429 | D54: 1998000 | E54: 14868000 | F54: =TableCostRatio[[#This Row],[Cost feeder]]+TableCostRatio[[#This Row],[Cost drop]] -> 16866000 | G54: =IF(TableCostRatio[[#This Row],[Total Cost]]=MIN(TableCostRatio[Total Cost]),IF(SUM(G55:$G$99)=0,1,""),"") -> 
A55: 0.47 | B55: 2635.135135 | C55: 513.5135135 | D55: 1998000 | E55: 14652000 | F55: =TableCostRatio[[#This Row],[Cost feeder]]+TableCostRatio[[#This Row],[Cost drop]] -> 16650000 | G55: =IF(TableCostRatio[[#This Row],[Total Cost]]=MIN(TableCostRatio[Total Cost]),IF(SUM(G56:$G$99)=0,1,""),"") -> 
A56: 0.46 | B56: 2565.789474 | C56: 500 | D56: 1998000 | E56: 14774400 | F56: =TableCostRatio[[#This Row],[Cost feeder]]+TableCostRatio[[#This Row],[Cost drop]] -> 16772400 | G56: =IF(TableCostRatio[[#This Row],[Total Cost]]=MIN(TableCostRatio[Total Cost]),IF(SUM(G57:$G$99)=0,1,""),"") -> 
A57: 0.45 | B57: 2437.5 | C57: 475 | D57: 1998000 | E57: 14688000 | F57: =TableCostRatio[[#This Row],[Cost feeder]]+TableCostRatio[[#This Row],[Cost drop]] -> 16686000 | G57: =IF(TableCostRatio[[#This Row],[Total Cost]]=MIN(TableCostRatio[Total Cost]),IF(SUM(G58:$G$99)=0,1,""),"") -> 
A58: 0.44 | B58: 2321.428571 | C58: 452.3809524 | D58: 1998000 | E58: 14817600 | F58: =TableCostRatio[[#This Row],[Cost feeder]]+TableCostRatio[[#This Row],[Cost drop]] -> 16815600 | G58: =IF(TableCostRatio[[#This Row],[Total Cost]]=MIN(TableCostRatio[Total Cost]),IF(SUM(G59:$G$99)=0,1,""),"") -> 
A59: 0.43 | B59: 2215.909091 | C59: 431.8181818 | D59: 1998000 | E59: 14889600 | F59: =TableCostRatio[[#This Row],[Cost feeder]]+TableCostRatio[[#This Row],[Cost drop]] -> 16887600 | G59: =IF(TableCostRatio[[#This Row],[Total Cost]]=MIN(TableCostRatio[Total Cost]),IF(SUM(G60:$G$99)=0,1,""),"") -> 
A60: 0.42 | B60: 2119.565217 | C60: 413.0434783 | D60: 1998000 | E60: 14904000 | F60: =TableCostRatio[[#This Row],[Cost feeder]]+TableCostRatio[[#This Row],[Cost drop]] -> 16902000 | G60: =IF(TableCostRatio[[#This Row],[Total Cost]]=MIN(TableCostRatio[Total Cost]),IF(SUM(G61:$G$99)=0,1,""),"") -> 
A61: 0.41 | B61: 2031.25 | C61: 395.8333333 | D61: 1998000 | E61: 14860800 | F61: =TableCostRatio[[#This Row],[Cost feeder]]+TableCostRatio[[#This Row],[Cost drop]] -> 16858800 | G61: =IF(TableCostRatio[[#This Row],[Total Cost]]=MIN(TableCostRatio[Total Cost]),IF(SUM(G62:$G$99)=0,1,""),"") -> 
A62: 0.4 | B62: 1950 | C62: 380 | D62: 1998000 | E62: 14760000 | F62: =TableCostRatio[[#This Row],[Cost feeder]]+TableCostRatio[[#This Row],[Cost drop]] -> 16758000 | G62: =IF(TableCostRatio[[#This Row],[Total Cost]]=MIN(TableCostRatio[Total Cost]),IF(SUM(G63:$G$99)=0,1,""),"") -> 
A63: 0.39 | B63: 1839.622642 | C63: 358.490566 | D63: 1998000 | E63: 14882400 | F63: =TableCostRatio[[#This Row],[Cost feeder]]+TableCostRatio[[#This Row],[Cost drop]] -> 16880400 | G63: =IF(TableCostRatio[[#This Row],[Total Cost]]=MIN(TableCostRatio[Total Cost]),IF(SUM(G64:$G$99)=0,1,""),"") -> 
A64: 0.38 | B64: 1741.071429 | C64: 339.2857143 | D64: 1998000 | E64: 14918400 | F64: =TableCostRatio[[#This Row],[Cost feeder]]+TableCostRatio[[#This Row],[Cost drop]] -> 16916400 | G64: =IF(TableCostRatio[[#This Row],[Total Cost]]=MIN(TableCostRatio[Total Cost]),IF(SUM(G65:$G$99)=0,1,""),"") -> 
A65: 0.37 | B65: 1652.542373 | C65: 322.0338983 | D65: 1998000 | E65: 14868000 | F65: =TableCostRatio[[#This Row],[Cost feeder]]+TableCostRatio[[#This Row],[Cost drop]] -> 16866000 | G65: =IF(TableCostRatio[[#This Row],[Total Cost]]=MIN(TableCostRatio[Total Cost]),IF(SUM(G66:$G$99)=0,1,""),"") -> 
A66: 0.36 | B66: 1572.580645 | C66: 306.4516129 | D66: 1998000 | E66: 14731200 | F66: =TableCostRatio[[#This Row],[Cost feeder]]+TableCostRatio[[#This Row],[Cost drop]] -> 16729200 | G66: =IF(TableCostRatio[[#This Row],[Total Cost]]=MIN(TableCostRatio[Total Cost]),IF(SUM(G67:$G$99)=0,1,""),"") -> 
A67: 0.35 | B67: 1477.272727 | C67: 287.8787879 | D67: 1998000 | E67: 14731200 | F67: =TableCostRatio[[#This Row],[Cost feeder]]+TableCostRatio[[#This Row],[Cost drop]] -> 16729200 | G67: =IF(TableCostRatio[[#This Row],[Total Cost]]=MIN(TableCostRatio[Total Cost]),IF(SUM(G68:$G$99)=0,1,""),"") -> 
A68: 0.34 | B68: 1413.043478 | C68: 275.3623188 | D68: 2030424.253 | E68: 14904000 | F68: =TableCostRatio[[#This Row],[Cost feeder]]+TableCostRatio[[#This Row],[Cost drop]] -> 16934424.25 | G68: =IF(TableCostRatio[[#This Row],[Total Cost]]=MIN(TableCostRatio[Total Cost]),IF(SUM(G69:$G$99)=0,1,""),"") -> 
A69: 0.33 | B69: 1317.567568 | C69: 256.7567568 | D69: 2084464.674 | E69: 14918400 | F69: =TableCostRatio[[#This Row],[Cost feeder]]+TableCostRatio[[#This Row],[Cost drop]] -> 17002864.67 | G69: =IF(TableCostRatio[[#This Row],[Total Cost]]=MIN(TableCostRatio[Total Cost]),IF(SUM(G70:$G$99)=0,1,""),"") -> 
A70: 0.32 | B70: 1250 | C70: 243.5897436 | D70: 2127697.011 | E70: 15163200 | F70: =TableCostRatio[[#This Row],[Cost feeder]]+TableCostRatio[[#This Row],[Cost drop]] -> 17290897.01 | G70: =IF(TableCostRatio[[#This Row],[Total Cost]]=MIN(TableCostRatio[Total Cost]),IF(SUM(G71:$G$99)=0,1,""),"") -> 
A71: 0.31 | B71: 1174.698795 | C71: 228.9156627 | D71: 2181737.432 | E71: 14940000 | F71: =TableCostRatio[[#This Row],[Cost feeder]]+TableCostRatio[[#This Row],[Cost drop]] -> 17121737.43 | G71: =IF(TableCostRatio[[#This Row],[Total Cost]]=MIN(TableCostRatio[Total Cost]),IF(SUM(G72:$G$99)=0,1,""),"") -> 
A72: 0.3 | B72: 1095.505618 | C72: 213.4831461 | D72: 2246585.937 | E72: 14738400 | F72: =TableCostRatio[[#This Row],[Cost feeder]]+TableCostRatio[[#This Row],[Cost drop]] -> 16984985.94 | G72: =IF(TableCostRatio[[#This Row],[Total Cost]]=MIN(TableCostRatio[Total Cost]),IF(SUM(G73:$G$99)=0,1,""),"") -> 
A73: 0.29 | B73: 1026.315789 | C73: 200 | D73: 2311434.443 | E73: 15048000 | F73: =TableCostRatio[[#This Row],[Cost feeder]]+TableCostRatio[[#This Row],[Cost drop]] -> 17359434.44 | G73: =IF(TableCostRatio[[#This Row],[Total Cost]]=MIN(TableCostRatio[Total Cost]),IF(SUM(G74:$G$99)=0,1,""),"") -> 
A74: 0.28 | B74: 955.8823529 | C74: 186.2745098 | D74: 2387091.032 | E74: 14688000 | F74: =TableCostRatio[[#This Row],[Cost feeder]]+TableCostRatio[[#This Row],[Cost drop]] -> 17075091.03 | G74: =IF(TableCostRatio[[#This Row],[Total Cost]]=MIN(TableCostRatio[Total Cost]),IF(SUM(G75:$G$99)=0,1,""),"") -> 
A75: 0.27 | B75: 886.3636364 | C75: 172.7272727 | D75: 2473555.706 | E75: 15048000 | F75: =TableCostRatio[[#This Row],[Cost feeder]]+TableCostRatio[[#This Row],[Cost drop]] -> 17521555.71 | G75: =IF(TableCostRatio[[#This Row],[Total Cost]]=MIN(TableCostRatio[Total Cost]),IF(SUM(G76:$G$99)=0,1,""),"") -> 
A76: 0.26 | B76: 826.2711864 | C76: 161.0169492 | D76: 2560020.38 | E76: 15292800 | F76: =TableCostRatio[[#This Row],[Cost feeder]]+TableCostRatio[[#This Row],[Cost drop]] -> 17852820.38 | G76: =IF(TableCostRatio[[#This Row],[Total Cost]]=MIN(TableCostRatio[Total Cost]),IF(SUM(G77:$G$99)=0,1,""),"") -> 
A77: 0.25 | B77: 761.71875 | C77: 148.4375 | D77: 2668101.222 | E77: 14745600 | F77: =TableCostRatio[[#This Row],[Cost feeder]]+TableCostRatio[[#This Row],[Cost drop]] -> 17413701.22 | G77: =IF(TableCostRatio[[#This Row],[Total Cost]]=MIN(TableCostRatio[Total Cost]),IF(SUM(G78:$G$99)=0,1,""),"") -> 
A78: 0.24 | B78: 701.4388489 | C78: 136.6906475 | D78: 2786990.149 | E78: 15012000 | F78: =TableCostRatio[[#This Row],[Cost feeder]]+TableCostRatio[[#This Row],[Cost drop]] -> 17798990.15 | G78: =IF(TableCostRatio[[#This Row],[Total Cost]]=MIN(TableCostRatio[Total Cost]),IF(SUM(G79:$G$99)=0,1,""),"") -> 
A79: 0.23 | B79: 645.6953642 | C79: 125.8278146 | D79: 2916687.159 | E79: 15220800 | F79: =TableCostRatio[[#This Row],[Cost feeder]]+TableCostRatio[[#This Row],[Cost drop]] -> 18137487.16 | G79: =IF(TableCostRatio[[#This Row],[Total Cost]]=MIN(TableCostRatio[Total Cost]),IF(SUM(G80:$G$99)=0,1,""),"") -> 
A80: 0.22 | B80: 590.9090909 | C80: 115.1515152 | D80: 3068000.338 | E80: 15444000 | F80: =TableCostRatio[[#This Row],[Cost feeder]]+TableCostRatio[[#This Row],[Cost drop]] -> 18512000.34 | G80: =IF(TableCostRatio[[#This Row],[Total Cost]]=MIN(TableCostRatio[Total Cost]),IF(SUM(G81:$G$99)=0,1,""),"") -> 
A81: 0.21 | B81: 538.6740331 | C81: 104.9723757 | D81: 3240929.686 | E81: 15638400 | F81: =TableCostRatio[[#This Row],[Cost feeder]]+TableCostRatio[[#This Row],[Cost drop]] -> 18879329.69 | G81: =IF(TableCostRatio[[#This Row],[Total Cost]]=MIN(TableCostRatio[Total Cost]),IF(SUM(G82:$G$99)=0,1,""),"") -> 
A82: 0.2 | B82: 487.5 | C82: 95 | D82: 3446283.286 | E82: 15840000 | F82: =TableCostRatio[[#This Row],[Cost feeder]]+TableCostRatio[[#This Row],[Cost drop]] -> 19286283.29 | G82: =IF(TableCostRatio[[#This Row],[Total Cost]]=MIN(TableCostRatio[Total Cost]),IF(SUM(G83:$G$99)=0,1,""),"") -> 
A83: 0.19 | B83: 441.1764706 | C83: 85.97285068 | D83: 3673253.055 | E83: 15912000 | F83: =TableCostRatio[[#This Row],[Cost feeder]]+TableCostRatio[[#This Row],[Cost drop]] -> 19585253.06 | G83: =IF(TableCostRatio[[#This Row],[Total Cost]]=MIN(TableCostRatio[Total Cost]),IF(SUM(G84:$G$99)=0,1,""),"") -> 
A84: 0.18 | B84: 396.3414634 | C84: 77.23577236 | D84: 3943455.161 | E84: 15940800 | F84: =TableCostRatio[[#This Row],[Cost feeder]]+TableCostRatio[[#This Row],[Cost drop]] -> 19884255.16 | G84: =IF(TableCostRatio[[#This Row],[Total Cost]]=MIN(TableCostRatio[Total Cost]),IF(SUM(G85:$G$99)=0,1,""),"") -> 
A85: 0.17 | B85: 353.2608696 | C85: 68.84057971 | D85: 4267697.688 | E85: 15897600 | F85: =TableCostRatio[[#This Row],[Cost feeder]]+TableCostRatio[[#This Row],[Cost drop]] -> 20165297.69 | G85: =IF(TableCostRatio[[#This Row],[Total Cost]]=MIN(TableCostRatio[Total Cost]),IF(SUM(G86:$G$99)=0,1,""),"") -> 
A86: 0.16 | B86: 312.5 | C86: 60.8974359 | D86: 4656788.72 | E86: 15724800 | F86: =TableCostRatio[[#This Row],[Cost feeder]]+TableCostRatio[[#This Row],[Cost drop]] -> 20381588.72 | G86: =IF(TableCostRatio[[#This Row],[Total Cost]]=MIN(TableCostRatio[Total Cost]),IF(SUM(G87:$G$99)=0,1,""),"") -> 
A87: 0.15 | B87: 275.4237288 | C87: 53.67231638 | D87: 5110728.257 | E87: 15292800 | F87: =TableCostRatio[[#This Row],[Cost feeder]]+TableCostRatio[[#This Row],[Cost drop]] -> 20403528.26 | G87: =IF(TableCostRatio[[#This Row],[Total Cost]]=MIN(TableCostRatio[Total Cost]),IF(SUM(G88:$G$99)=0,1,""),"") -> 
A88: 0.14 | B88: 239.5577396 | C88: 46.68304668 | D88: 5683556.721 | E88: 14652000 | F88: =TableCostRatio[[#This Row],[Cost feeder]]+TableCostRatio[[#This Row],[Cost drop]] -> 20335556.72 | G88: =IF(TableCostRatio[[#This Row],[Total Cost]]=MIN(TableCostRatio[Total Cost]),IF(SUM(G89:$G$99)=0,1,""),"") -> 
A89: 0.13 | B89: 206.5677966 | C89: 40.25423729 | D89: 6386082.196 | E89: 16992000 | F89: =TableCostRatio[[#This Row],[Cost feeder]]+TableCostRatio[[#This Row],[Cost drop]] -> 23378082.2 | G89: =IF(TableCostRatio[[#This Row],[Total Cost]]=MIN(TableCostRatio[Total Cost]),IF(SUM(G90:$G$99)=0,1,""),"") -> 
A90: 0.12 | B90: 175.9927798 | C90: 34.29602888 | D90: 7272345.103 | E90: 15955200 | F90: =TableCostRatio[[#This Row],[Cost feeder]]+TableCostRatio[[#This Row],[Cost drop]] -> 23227545.1 | G90: =IF(TableCostRatio[[#This Row],[Total Cost]]=MIN(TableCostRatio[Total Cost]),IF(SUM(G91:$G$99)=0,1,""),"") -> 
A91: 0.11 | B91: 147.9514416 | C91: 28.83156297 | D91: 8407193.947 | E91: 18979200 | F91: =TableCostRatio[[#This Row],[Cost feeder]]+TableCostRatio[[#This Row],[Cost drop]] -> 27386393.95 | G91: =IF(TableCostRatio[[#This Row],[Total Cost]]=MIN(TableCostRatio[Total Cost]),IF(SUM(G92:$G$99)=0,1,""),"") -> 
A92: 0.1 | B92: 122.3337516 | C92: 23.83939774 | D92: 9898709.57 | E92: 17215200 | F92: =TableCostRatio[[#This Row],[Cost feeder]]+TableCostRatio[[#This Row],[Cost drop]] -> 27113909.57 | G92: =IF(TableCostRatio[[#This Row],[Total Cost]]=MIN(TableCostRatio[Total Cost]),IF(SUM(G93:$G$99)=0,1,""),"") -> 
A93: 0.09 | B93: 99.08536585 | C93: 19.30894309 | D93: 12585821.32 | E93: 21254400 | F93: =TableCostRatio[[#This Row],[Cost feeder]]+TableCostRatio[[#This Row],[Cost drop]] -> 33840221.32 | G93: =IF(TableCostRatio[[#This Row],[Total Cost]]=MIN(TableCostRatio[Total Cost]),IF(SUM(G94:$G$99)=0,1,""),"") -> 
A94: 0.08 | B94: 78.31325301 | C94: 15.26104418 | D94: 14740731.3 | E94: 17928000 | F94: =TableCostRatio[[#This Row],[Cost feeder]]+TableCostRatio[[#This Row],[Cost drop]] -> 32668731.3 | G94: =IF(TableCostRatio[[#This Row],[Total Cost]]=MIN(TableCostRatio[Total Cost]),IF(SUM(G95:$G$99)=0,1,""),"") -> 
A95: 0.07 | B95: 59.96309963 | C95: 11.68511685 | D95: 19524611.39 | E95: 23414400 | F95: =TableCostRatio[[#This Row],[Cost feeder]]+TableCostRatio[[#This Row],[Cost drop]] -> 42939011.39 | G95: =IF(TableCostRatio[[#This Row],[Total Cost]]=MIN(TableCostRatio[Total Cost]),IF(SUM(G96:$G$99)=0,1,""),"") -> 
A96: 0.06 | B96: 44.05784004 | C96: 8.585630366 | D96: 25202956.84 | E96: 15933600 | F96: =TableCostRatio[[#This Row],[Cost feeder]]+TableCostRatio[[#This Row],[Cost drop]] -> 41136556.84 | G96: =IF(TableCostRatio[[#This Row],[Total Cost]]=MIN(TableCostRatio[Total Cost]),IF(SUM(G97:$G$99)=0,1,""),"") -> 
A97: 0.05 | B97: 30.60263653 | C97: 5.963590709 | D97: 36385222.79 | E97: 22939200 | F97: =TableCostRatio[[#This Row],[Cost feeder]]+TableCostRatio[[#This Row],[Cost drop]] -> 59324422.79 | G97: =IF(TableCostRatio[[#This Row],[Total Cost]]=MIN(TableCostRatio[Total Cost]),IF(SUM(G98:$G$99)=0,1,""),"") -> 
A98: 0.04 | B98: 19.58617919 | C98: 3.816793893 | D98: 57085309.72 | E98: 35841600 | F98: =TableCostRatio[[#This Row],[Cost feeder]]+TableCostRatio[[#This Row],[Cost drop]] -> 92926909.72 | G98: =IF(TableCostRatio[[#This Row],[Total Cost]]=MIN(TableCostRatio[Total Cost]),IF(SUM(G99:$G$99)=0,1,""),"") -> 
A99: 0.03 | B99: 11.01694915 | C99: 2.146892655 | D99: 101598211.8 | E99: 63720000 | F99: =TableCostRatio[[#This Row],[Cost feeder]]+TableCostRatio[[#This Row],[Cost drop]] -> 165318211.8 | G99: =IF(TableCostRatio[[#This Row],[Total Cost]]=MIN(TableCostRatio[Total Cost]),IF(SUM(G$99:$G100)=0,1,""),"") -> 
A100: 0.02 | B100: 4.896790719 | C100: 0.9542463965 | D100: 228472431.5 | E100: 143359200 | F100: =TableCostRatio[[#This Row],[Cost feeder]]+TableCostRatio[[#This Row],[Cost drop]] -> 371831631.5 | G100: =IF(TableCostRatio[[#This Row],[Total Cost]]=MIN(TableCostRatio[Total Cost]),IF(SUM(G$99:$G101)=0,1,""),"") -> 
A101: 0.01 | B101: 1.224228422 | C101: 0.23856759 | D101: 915342110.4 | E101: 573422400 | F101: =TableCostRatio[[#This Row],[Cost feeder]]+TableCostRatio[[#This Row],[Cost drop]] -> 1488764510 | G101: =IF(TableCostRatio[[#This Row],[Total Cost]]=MIN(TableCostRatio[Total Cost]),"1","") -> 

Sheet Demography
B1: Actual | C1: Future
A2: Year | B2: =act_year -> 2013 | C2: =fut_year -> 2025
A3: Lodgment | B3: =act_lodgment -> 95725 | C3: =fut_lodgment-B3 -> 1775
A4: Building | B4: =act_building -> 18672 | C4: =fut_building-B4 -> 328
